{"text_format":"3","workbook":"xlsx","n_sheets":4,"sheets":["EESMÄRGID","TOITUMINE","TREENING","Diagrammi arvutused"],"not_rendered":{"charts":2,"defined_names":19},"read":"whole","date_system":"1900"}

{"sheet":"EESMÄRGID","index":0,"n_rows":16,"n_cols":11,"rows_kept":16,"merged":[[2,1,3,1],[7,1,8,1]]}
[null,{"$f":"TODAY()","v":"2017-05-09"},"EESMÄRGID",{"$nulls":6},"Treening","Toitumine"]
[null,"ALGUSKUUPÄEV","TOITUMIS- JA TRENNIPÄEVIK"]
[null,{"$f":"Alguskuupäev+121","v":"2017-09-07"},"TOITUMISE ANALÜÜS"]
[]
[null,"LÕPPKUUPÄEV"]
[null,{"v":100,"d":"100.00"}]
[null,"ALGKAAL"]
[null,{"v":80,"d":"80.00"},"TREENINGUTE ANALÜÜS"]
[]
[null,"LÕPPKAAL"]
[null,{"$f":"Algkaal-Lõppkaal","v":20}]
[null,"KAALUKAOTUSE EESMÄRK"]
[null,{"$f":"Lõppkuupäev-Alguskuupäev","v":121}]
[null,"KAALUKAOTUSEKS KULUVAD PÄEVAD"]
[null,{"$f":"Kaalueesmärk/B13","v":{"v":0.1652892561983471,"d":"0.17"}}]
[null,"KAALUKAOTUS PÄEVAS"]

{"sheet":"TOITUMINE","index":1,"n_rows":19,"n_cols":9,"rows_kept":19}
[null,"TOITUMINE",{"$nulls":4},"Eesmärgid","Treening"]
[null,{"$f":"Alapealkiri","v":"TOITUMIS- JA TRENNIPÄEVIK"}]
[null,"KUUPÄEV","KELLAAEG","KIRJELDUS","KALORID","SÜSIVESIKUD","VALGUD","RASVAD","MÄRKMED"]
[null,{"$f":"Alguskuupäev","v":"2017-05-09"},"07:00:00","Kohv",1,0,0,0,"Hommikukohv"]
[null,{"$f":"Alguskuupäev","v":"2017-05-09"},"08:00:00","Saiake",10,10,2,10,"Kerge hommikusöök"]
[null,{"$f":"Alguskuupäev","v":"2017-05-09"},"12:00:00","Lõunasöök",283,46,18,{"v":3.5,"d":"4"},"Kalkunivõileib"]
[null,{"$f":"Alguskuupäev","v":"2017-05-09"},"19:00:00","Õhtusöök",500,42,35,25,"Vormiroog"]
[null,{"$f":"Alguskuupäev+1","v":"2017-05-10"},"07:00:00","Kohv",1,0,0,0,"Hommikukohv"]
[null,{"$f":"Alguskuupäev+1","v":"2017-05-10"},"08:00:00","Röstsai",10,10,2,10,"Kerge hommikusöök"]
[null,{"$f":"Alguskuupäev+1","v":"2017-05-10"},"12:00:00","Lõunasöök",189,26,3,8,"Võileib"]
[null,{"$f":"Alguskuupäev+1","v":"2017-05-10"},"19:00:00","Õhtusöök",477,62,{"v":13.5,"d":"14"},21,"Õhtusöök"]
[null,{"$f":"Alguskuupäev+2","v":"2017-05-11"},"07:00:00","Kohv",1,0,0,0,"Hommikukohv"]
[null,{"$f":"Alguskuupäev+2","v":"2017-05-11"},"08:00:00","Saiake",245,48,10,{"v":1.5,"d":"2"},"Kerge hommikusöök"]
[null,{"$f":"Alguskuupäev+2","v":"2017-05-11"},"12:00:00","Lõunasöök",247,11,43,5,"Salat"]
[null,{"$f":"Alguskuupäev+2","v":"2017-05-11"},"19:00:00","Õhtusöök",456,64,32,22,"Õhtusöök"]
[null,{"$f":"Alguskuupäev+3","v":"2017-05-12"},"07:00:00","Röstsai",10,10,2,10,"Kerge hommikusöök"]
[null,{"$f":"Alguskuupäev+3","v":"2017-05-12"},"10:00:00","Kohv",135,{"v":12.36,"d":"12"},{"v":8.81,"d":"9"},{"v":5.51,"d":"6"},"Piimakohv"]
[null,{"$f":"Alguskuupäev+3","v":"2017-05-12"},"12:15:00","Lõunasöök",184,7,{"v":5.43,"d":"5"},15,"Salat"]
[null,{"$f":"Alguskuupäev+5","v":"2017-05-14"},"19:00:00","Õhtusöök",477,62,{"v":13.5,"d":"14"},21,"Õhtusöök"]

{"sheet":"TREENING","index":2,"n_rows":20,"n_cols":7,"rows_kept":20}
[null,"TREENING",{"$nulls":3},"Toitumine","Eesmärgid"]
[null,{"$f":"Alapealkiri","v":"TOITUMIS- JA TRENNIPÄEVIK"}]
[null,"KUUPÄEV","KESTUS (MINUTITES)","KULUTATUD KALORID","MÄRKMED"]
[null,{"$f":"Alguskuupäev+4","v":"2017-05-13"},30,120,"Treening jooksulindil"]
[null,{"$f":"B4+1","v":"2017-05-14"},60,180,"Kerge aeroobika"]
[null,{"$f":"B5+1","v":"2017-05-15"},60,350,"Tugev treening"]
[null,"2017-05-16",30,150,"Treening jooksulindil"]
[null,"2017-05-17",25,125,"Jooks"]
[null,"2017-05-18",20,285,"Treening jooksulindil"]
[null,"2017-05-19",40,205,"Jooks"]
[null,"2017-05-20",30,335,"Jooks"]
[null,"2017-05-21",40,175,"Jooks"]
[null,"2017-05-22",45,325,"Treening jooksulindil"]
[null,"2017-05-23",40,270,"Jooks"]
[null,"2017-05-24",20,295,"Treening jooksulindil"]
[null,"2017-05-25",45,350,"Jooks"]
[null,"2017-05-26",35,320,"Jooks"]
[null,"2017-05-27",40,290,"Jooks"]
[null,{"$f":"B18+1","v":"2017-05-28"},25,265,"Treening jooksulindil"]
[null,"2017-05-29",20,195,"Jooks"]

{"sheet":"Diagrammi arvutused","index":3,"n_rows":36,"n_cols":10,"rows_kept":36,"hidden":true,"merged":[[1,1,1,9],[19,1,19,9]]}
[]
[null,"TOITUMISE ANALÜÜSI DIAGRAMMI ANDMED"]
[]
[null,"Algusrida",{"$f":"ROW(Toitumine[[#Headers],[KUUPÄEV]])+1","v":4},"KUUPÄEV","PÄEV","RASVAD","VALGUD","SÜSIVESIKUD","KALORID","Nr"]
[null,"Viimane toitumise kirje",{"$f":"MATCH(9.99E+307,Toitumine[KUUPÄEV])+DieediReaAlgus-1","v":19},{"$f":"IFERROR(IF(INDEX(Toitumine[],DieediKestuseLõpp-DieediReaAlgus-J5,1)<>\"\",INDEX(Toitumine[],DieediKestuseLõpp-DieediReaAlgus-J5,1),\"\"),\"\")","v":"2017-05-09"},{"$f":"UPPER(TEXT(D5,\"DDD\"))","v":"T"},{"$f":"IFERROR((IF(INDEX(Toitumine[],DieediKestuseLõpp-DieediReaAlgus-J5,1)<>\"\",INDEX(Toitumine[],DieediKestuseLõpp-DieediReaAlgus-J5,7),NA())),NA())","v":3.5},{"$f":"IFERROR((IF(INDEX(Toitumine[],DieediKestuseLõpp-DieediReaAlgus-J5,1)<>\"\",INDEX(Toitumine[],DieediKestuseLõpp-DieediReaAlgus-J5,6),NA())),NA())","v":18},{"$f":"IFERROR((IF(INDEX(Toitumine[],DieediKestuseLõpp-DieediReaAlgus-J5,1)<>\"\",INDEX(Toitumine[],DieediKestuseLõpp-DieediReaAlgus-J5,5),NA())),NA())","v":46},{"$f":"IFERROR((IF(INDEX(Toitumine[],DieediKestuseLõpp-DieediReaAlgus-J5,1)<>\"\",INDEX(Toitumine[],DieediKestuseLõpp-DieediReaAlgus-J5,4),NA())),NA())","v":283},12]
[{"$nulls":3},{"$f":"IFERROR(IF(INDEX(Toitumine[],DieediKestuseLõpp-DieediReaAlgus-J6,1)<>\"\",INDEX(Toitumine[],DieediKestuseLõpp-DieediReaAlgus-J6,1),\"\"),\"\")","v":"2017-05-09"},"T",{"$f":"IFERROR((IF(INDEX(Toitumine[],DieediKestuseLõpp-DieediReaAlgus-J6,1)<>\"\",INDEX(Toitumine[],DieediKestuseLõpp-DieediReaAlgus-J6,7),NA())),NA())","v":25},{"$f":"IFERROR((IF(INDEX(Toitumine[],DieediKestuseLõpp-DieediReaAlgus-J6,1)<>\"\",INDEX(Toitumine[],DieediKestuseLõpp-DieediReaAlgus-J6,6),NA())),NA())","v":35},{"$f":"IFERROR((IF(INDEX(Toitumine[],DieediKestuseLõpp-DieediReaAlgus-J6,1)<>\"\",INDEX(Toitumine[],DieediKestuseLõpp-DieediReaAlgus-J6,5),NA())),NA())","v":42},{"$f":"IFERROR((IF(INDEX(Toitumine[],DieediKestuseLõpp-DieediReaAlgus-J6,1)<>\"\",INDEX(Toitumine[],DieediKestuseLõpp-DieediReaAlgus-J6,4),NA())),NA())","v":500},11]
[{"$nulls":3},{"$f":"IFERROR(IF(INDEX(Toitumine[],DieediKestuseLõpp-DieediReaAlgus-J7,1)<>\"\",INDEX(Toitumine[],DieediKestuseLõpp-DieediReaAlgus-J7,1),\"\"),\"\")","v":"2017-05-10"},"K",{"$f":"IFERROR((IF(INDEX(Toitumine[],DieediKestuseLõpp-DieediReaAlgus-J7,1)<>\"\",INDEX(Toitumine[],DieediKestuseLõpp-DieediReaAlgus-J7,7),NA())),NA())","v":0},{"$f":"IFERROR((IF(INDEX(Toitumine[],DieediKestuseLõpp-DieediReaAlgus-J7,1)<>\"\",INDEX(Toitumine[],DieediKestuseLõpp-DieediReaAlgus-J7,6),NA())),NA())","v":0},{"$f":"IFERROR((IF(INDEX(Toitumine[],DieediKestuseLõpp-DieediReaAlgus-J7,1)<>\"\",INDEX(Toitumine[],DieediKestuseLõpp-DieediReaAlgus-J7,5),NA())),NA())","v":0},{"$f":"IFERROR((IF(INDEX(Toitumine[],DieediKestuseLõpp-DieediReaAlgus-J7,1)<>\"\",INDEX(Toitumine[],DieediKestuseLõpp-DieediReaAlgus-J7,4),NA())),NA())","v":1},10]
[{"$nulls":3},{"$f":"IFERROR(IF(INDEX(Toitumine[],DieediKestuseLõpp-DieediReaAlgus-J8,1)<>\"\",INDEX(Toitumine[],DieediKestuseLõpp-DieediReaAlgus-J8,1),\"\"),\"\")","v":"2017-05-10"},"K",{"$f":"IFERROR((IF(INDEX(Toitumine[],DieediKestuseLõpp-DieediReaAlgus-J8,1)<>\"\",INDEX(Toitumine[],DieediKestuseLõpp-DieediReaAlgus-J8,7),NA())),NA())","v":10},{"$f":"IFERROR((IF(INDEX(Toitumine[],DieediKestuseLõpp-DieediReaAlgus-J8,1)<>\"\",INDEX(Toitumine[],DieediKestuseLõpp-DieediReaAlgus-J8,6),NA())),NA())","v":2},{"$f":"IFERROR((IF(INDEX(Toitumine[],DieediKestuseLõpp-DieediReaAlgus-J8,1)<>\"\",INDEX(Toitumine[],DieediKestuseLõpp-DieediReaAlgus-J8,5),NA())),NA())","v":10},{"$f":"IFERROR((IF(INDEX(Toitumine[],DieediKestuseLõpp-DieediReaAlgus-J8,1)<>\"\",INDEX(Toitumine[],DieediKestuseLõpp-DieediReaAlgus-J8,4),NA())),NA())","v":10},9]
[{"$nulls":3},{"$f":"IFERROR(IF(INDEX(Toitumine[],DieediKestuseLõpp-DieediReaAlgus-J9,1)<>\"\",INDEX(Toitumine[],DieediKestuseLõpp-DieediReaAlgus-J9,1),\"\"),\"\")","v":"2017-05-10"},"K",{"$f":"IFERROR((IF(INDEX(Toitumine[],DieediKestuseLõpp-DieediReaAlgus-J9,1)<>\"\",INDEX(Toitumine[],DieediKestuseLõpp-DieediReaAlgus-J9,7),NA())),NA())","v":8},{"$f":"IFERROR((IF(INDEX(Toitumine[],DieediKestuseLõpp-DieediReaAlgus-J9,1)<>\"\",INDEX(Toitumine[],DieediKestuseLõpp-DieediReaAlgus-J9,6),NA())),NA())","v":3},{"$f":"IFERROR((IF(INDEX(Toitumine[],DieediKestuseLõpp-DieediReaAlgus-J9,1)<>\"\",INDEX(Toitumine[],DieediKestuseLõpp-DieediReaAlgus-J9,5),NA())),NA())","v":26},{"$f":"IFERROR((IF(INDEX(Toitumine[],DieediKestuseLõpp-DieediReaAlgus-J9,1)<>\"\",INDEX(Toitumine[],DieediKestuseLõpp-DieediReaAlgus-J9,4),NA())),NA())","v":189},8]
[{"$nulls":3},{"$f":"IFERROR(IF(INDEX(Toitumine[],DieediKestuseLõpp-DieediReaAlgus-J10,1)<>\"\",INDEX(Toitumine[],DieediKestuseLõpp-DieediReaAlgus-J10,1),\"\"),\"\")","v":"2017-05-10"},"K",{"$f":"IFERROR((IF(INDEX(Toitumine[],DieediKestuseLõpp-DieediReaAlgus-J10,1)<>\"\",INDEX(Toitumine[],DieediKestuseLõpp-DieediReaAlgus-J10,7),NA())),NA())","v":21},{"$f":"IFERROR((IF(INDEX(Toitumine[],DieediKestuseLõpp-DieediReaAlgus-J10,1)<>\"\",INDEX(Toitumine[],DieediKestuseLõpp-DieediReaAlgus-J10,6),NA())),NA())","v":13.5},{"$f":"IFERROR((IF(INDEX(Toitumine[],DieediKestuseLõpp-DieediReaAlgus-J10,1)<>\"\",INDEX(Toitumine[],DieediKestuseLõpp-DieediReaAlgus-J10,5),NA())),NA())","v":62},{"$f":"IFERROR((IF(INDEX(Toitumine[],DieediKestuseLõpp-DieediReaAlgus-J10,1)<>\"\",INDEX(Toitumine[],DieediKestuseLõpp-DieediReaAlgus-J10,4),NA())),NA())","v":477},7]
[{"$nulls":3},{"$f":"IFERROR(IF(INDEX(Toitumine[],DieediKestuseLõpp-DieediReaAlgus-J11,1)<>\"\",INDEX(Toitumine[],DieediKestuseLõpp-DieediReaAlgus-J11,1),\"\"),\"\")","v":"2017-05-11"},"N",{"$f":"IFERROR((IF(INDEX(Toitumine[],DieediKestuseLõpp-DieediReaAlgus-J11,1)<>\"\",INDEX(Toitumine[],DieediKestuseLõpp-DieediReaAlgus-J11,7),NA())),NA())","v":0},{"$f":"IFERROR((IF(INDEX(Toitumine[],DieediKestuseLõpp-DieediReaAlgus-J11,1)<>\"\",INDEX(Toitumine[],DieediKestuseLõpp-DieediReaAlgus-J11,6),NA())),NA())","v":0},{"$f":"IFERROR((IF(INDEX(Toitumine[],DieediKestuseLõpp-DieediReaAlgus-J11,1)<>\"\",INDEX(Toitumine[],DieediKestuseLõpp-DieediReaAlgus-J11,5),NA())),NA())","v":0},{"$f":"IFERROR((IF(INDEX(Toitumine[],DieediKestuseLõpp-DieediReaAlgus-J11,1)<>\"\",INDEX(Toitumine[],DieediKestuseLõpp-DieediReaAlgus-J11,4),NA())),NA())","v":1},6]
[{"$nulls":3},{"$f":"IFERROR(IF(INDEX(Toitumine[],DieediKestuseLõpp-DieediReaAlgus-J12,1)<>\"\",INDEX(Toitumine[],DieediKestuseLõpp-DieediReaAlgus-J12,1),\"\"),\"\")","v":"2017-05-11"},"N",{"$f":"IFERROR((IF(INDEX(Toitumine[],DieediKestuseLõpp-DieediReaAlgus-J12,1)<>\"\",INDEX(Toitumine[],DieediKestuseLõpp-DieediReaAlgus-J12,7),NA())),NA())","v":1.5},{"$f":"IFERROR((IF(INDEX(Toitumine[],DieediKestuseLõpp-DieediReaAlgus-J12,1)<>\"\",INDEX(Toitumine[],DieediKestuseLõpp-DieediReaAlgus-J12,6),NA())),NA())","v":10},{"$f":"IFERROR((IF(INDEX(Toitumine[],DieediKestuseLõpp-DieediReaAlgus-J12,1)<>\"\",INDEX(Toitumine[],DieediKestuseLõpp-DieediReaAlgus-J12,5),NA())),NA())","v":48},{"$f":"IFERROR((IF(INDEX(Toitumine[],DieediKestuseLõpp-DieediReaAlgus-J12,1)<>\"\",INDEX(Toitumine[],DieediKestuseLõpp-DieediReaAlgus-J12,4),NA())),NA())","v":245},5]
[{"$nulls":3},{"$f":"IFERROR(IF(INDEX(Toitumine[],DieediKestuseLõpp-DieediReaAlgus-J13,1)<>\"\",INDEX(Toitumine[],DieediKestuseLõpp-DieediReaAlgus-J13,1),\"\"),\"\")","v":"2017-05-11"},"N",{"$f":"IFERROR((IF(INDEX(Toitumine[],DieediKestuseLõpp-DieediReaAlgus-J13,1)<>\"\",INDEX(Toitumine[],DieediKestuseLõpp-DieediReaAlgus-J13,7),NA())),NA())","v":5},{"$f":"IFERROR((IF(INDEX(Toitumine[],DieediKestuseLõpp-DieediReaAlgus-J13,1)<>\"\",INDEX(Toitumine[],DieediKestuseLõpp-DieediReaAlgus-J13,6),NA())),NA())","v":43},{"$f":"IFERROR((IF(INDEX(Toitumine[],DieediKestuseLõpp-DieediReaAlgus-J13,1)<>\"\",INDEX(Toitumine[],DieediKestuseLõpp-DieediReaAlgus-J13,5),NA())),NA())","v":11},{"$f":"IFERROR((IF(INDEX(Toitumine[],DieediKestuseLõpp-DieediReaAlgus-J13,1)<>\"\",INDEX(Toitumine[],DieediKestuseLõpp-DieediReaAlgus-J13,4),NA())),NA())","v":247},4]
[{"$nulls":3},{"$f":"IFERROR(IF(INDEX(Toitumine[],DieediKestuseLõpp-DieediReaAlgus-J14,1)<>\"\",INDEX(Toitumine[],DieediKestuseLõpp-DieediReaAlgus-J14,1),\"\"),\"\")","v":"2017-05-11"},"N",{"$f":"IFERROR((IF(INDEX(Toitumine[],DieediKestuseLõpp-DieediReaAlgus-J14,1)<>\"\",INDEX(Toitumine[],DieediKestuseLõpp-DieediReaAlgus-J14,7),NA())),NA())","v":22},{"$f":"IFERROR((IF(INDEX(Toitumine[],DieediKestuseLõpp-DieediReaAlgus-J14,1)<>\"\",INDEX(Toitumine[],DieediKestuseLõpp-DieediReaAlgus-J14,6),NA())),NA())","v":32},{"$f":"IFERROR((IF(INDEX(Toitumine[],DieediKestuseLõpp-DieediReaAlgus-J14,1)<>\"\",INDEX(Toitumine[],DieediKestuseLõpp-DieediReaAlgus-J14,5),NA())),NA())","v":64},{"$f":"IFERROR((IF(INDEX(Toitumine[],DieediKestuseLõpp-DieediReaAlgus-J14,1)<>\"\",INDEX(Toitumine[],DieediKestuseLõpp-DieediReaAlgus-J14,4),NA())),NA())","v":456},3]
[{"$nulls":3},{"$f":"IFERROR(IF(INDEX(Toitumine[],DieediKestuseLõpp-DieediReaAlgus-J15,1)<>\"\",INDEX(Toitumine[],DieediKestuseLõpp-DieediReaAlgus-J15,1),\"\"),\"\")","v":"2017-05-12"},"R",{"$f":"IFERROR((IF(INDEX(Toitumine[],DieediKestuseLõpp-DieediReaAlgus-J15,1)<>\"\",INDEX(Toitumine[],DieediKestuseLõpp-DieediReaAlgus-J15,7),NA())),NA())","v":10},{"$f":"IFERROR((IF(INDEX(Toitumine[],DieediKestuseLõpp-DieediReaAlgus-J15,1)<>\"\",INDEX(Toitumine[],DieediKestuseLõpp-DieediReaAlgus-J15,6),NA())),NA())","v":2},{"$f":"IFERROR((IF(INDEX(Toitumine[],DieediKestuseLõpp-DieediReaAlgus-J15,1)<>\"\",INDEX(Toitumine[],DieediKestuseLõpp-DieediReaAlgus-J15,5),NA())),NA())","v":10},{"$f":"IFERROR((IF(INDEX(Toitumine[],DieediKestuseLõpp-DieediReaAlgus-J15,1)<>\"\",INDEX(Toitumine[],DieediKestuseLõpp-DieediReaAlgus-J15,4),NA())),NA())","v":10},2]
[{"$nulls":3},{"$f":"IFERROR(IF(INDEX(Toitumine[],DieediKestuseLõpp-DieediReaAlgus-J16,1)<>\"\",INDEX(Toitumine[],DieediKestuseLõpp-DieediReaAlgus-J16,1),\"\"),\"\")","v":"2017-05-12"},"R",{"$f":"IFERROR((IF(INDEX(Toitumine[],DieediKestuseLõpp-DieediReaAlgus-J16,1)<>\"\",INDEX(Toitumine[],DieediKestuseLõpp-DieediReaAlgus-J16,7),NA())),NA())","v":5.51},{"$f":"IFERROR((IF(INDEX(Toitumine[],DieediKestuseLõpp-DieediReaAlgus-J16,1)<>\"\",INDEX(Toitumine[],DieediKestuseLõpp-DieediReaAlgus-J16,6),NA())),NA())","v":8.81},{"$f":"IFERROR((IF(INDEX(Toitumine[],DieediKestuseLõpp-DieediReaAlgus-J16,1)<>\"\",INDEX(Toitumine[],DieediKestuseLõpp-DieediReaAlgus-J16,5),NA())),NA())","v":12.36},{"$f":"IFERROR((IF(INDEX(Toitumine[],DieediKestuseLõpp-DieediReaAlgus-J16,1)<>\"\",INDEX(Toitumine[],DieediKestuseLõpp-DieediReaAlgus-J16,4),NA())),NA())","v":135},1]
[{"$nulls":3},{"$f":"IFERROR(IF(INDEX(Toitumine[],DieediKestuseLõpp-DieediReaAlgus-J17,1)<>\"\",INDEX(Toitumine[],DieediKestuseLõpp-DieediReaAlgus-J17,1),\"\"),\"\")","v":"2017-05-12"},"R",{"$f":"IFERROR((IF(INDEX(Toitumine[],DieediKestuseLõpp-DieediReaAlgus-J17,1)<>\"\",INDEX(Toitumine[],DieediKestuseLõpp-DieediReaAlgus-J17,7),NA())),NA())","v":15},{"$f":"IFERROR((IF(INDEX(Toitumine[],DieediKestuseLõpp-DieediReaAlgus-J17,1)<>\"\",INDEX(Toitumine[],DieediKestuseLõpp-DieediReaAlgus-J17,6),NA())),NA())","v":5.43},{"$f":"IFERROR((IF(INDEX(Toitumine[],DieediKestuseLõpp-DieediReaAlgus-J17,1)<>\"\",INDEX(Toitumine[],DieediKestuseLõpp-DieediReaAlgus-J17,5),NA())),NA())","v":7},{"$f":"IFERROR((IF(INDEX(Toitumine[],DieediKestuseLõpp-DieediReaAlgus-J17,1)<>\"\",INDEX(Toitumine[],DieediKestuseLõpp-DieediReaAlgus-J17,4),NA())),NA())","v":184},0]
[{"$nulls":3},{"$f":"IFERROR(IF(INDEX(Toitumine[],DieediKestuseLõpp-DieediReaAlgus-J18,1)<>\"\",INDEX(Toitumine[],DieediKestuseLõpp-DieediReaAlgus-J18,1),\"\"),\"\")","v":"2017-05-14"},"P",{"$f":"IFERROR((IF(INDEX(Toitumine[],DieediKestuseLõpp-DieediReaAlgus-J18,1)<>\"\",INDEX(Toitumine[],DieediKestuseLõpp-DieediReaAlgus-J18,7),NA())),NA())","v":21},{"$f":"IFERROR((IF(INDEX(Toitumine[],DieediKestuseLõpp-DieediReaAlgus-J18,1)<>\"\",INDEX(Toitumine[],DieediKestuseLõpp-DieediReaAlgus-J18,6),NA())),NA())","v":13.5},{"$f":"IFERROR((IF(INDEX(Toitumine[],DieediKestuseLõpp-DieediReaAlgus-J18,1)<>\"\",INDEX(Toitumine[],DieediKestuseLõpp-DieediReaAlgus-J18,5),NA())),NA())","v":62},{"$f":"IFERROR((IF(INDEX(Toitumine[],DieediKestuseLõpp-DieediReaAlgus-J18,1)<>\"\",INDEX(Toitumine[],DieediKestuseLõpp-DieediReaAlgus-J18,4),NA())),NA())","v":477},-1]
[]
[null,"TREENINGUTE ANALÜÜSI DIAGRAMMI ANDMED"]
[]
[null,"Algusrida",{"$f":"ROW(Treening[[#Headers],[KUUPÄEV]])+1","v":4},"KUUPÄEV","PÄEV","KESTUS (MINUTITES)","KULUTATUD KALORID","Nr"]
[null,"Viimane treeningukirje",{"$f":"MATCH(9.99E+307,Treening[KUUPÄEV])+TreeninguReaAlgus-1","v":20},{"$f":"IFERROR(IF(INDEX(Treening[],TreeninguKestuseLõpp-TreeninguReaAlgus-H23,1)<>\"\",INDEX(Treening[],TreeninguKestuseLõpp-TreeninguReaAlgus-H23,1)),\"\")","v":"2017-05-29"},{"$f":"UPPER(TEXT(D23,\"DDD\"))","v":"E"},{"$f":"IFERROR((IF(INDEX(Treening[],TreeninguKestuseLõpp-TreeninguReaAlgus-H23,1)<>\"\",INDEX(Treening[],TreeninguKestuseLõpp-TreeninguReaAlgus-H23,2),0)),0)","v":20},{"$f":"IFERROR((IF(INDEX(Treening[],TreeninguKestuseLõpp-TreeninguReaAlgus-H23,2)<>\"\",INDEX(Treening[],TreeninguKestuseLõpp-TreeninguReaAlgus-H23,3),0)),0)","v":195},-1]
[{"$nulls":3},{"$f":"IFERROR(IF(INDEX(Treening[],TreeninguKestuseLõpp-TreeninguReaAlgus-H24,1)<>\"\",INDEX(Treening[],TreeninguKestuseLõpp-TreeninguReaAlgus-H24,1)),\"\")","v":"2017-05-28"},"P",{"$f":"IFERROR((IF(INDEX(Treening[],TreeninguKestuseLõpp-TreeninguReaAlgus-H24,1)<>\"\",INDEX(Treening[],TreeninguKestuseLõpp-TreeninguReaAlgus-H24,2),0)),0)","v":25},{"$f":"IFERROR((IF(INDEX(Treening[],TreeninguKestuseLõpp-TreeninguReaAlgus-H24,2)<>\"\",INDEX(Treening[],TreeninguKestuseLõpp-TreeninguReaAlgus-H24,3),0)),0)","v":265},0]
[{"$nulls":3},{"$f":"IFERROR(IF(INDEX(Treening[],TreeninguKestuseLõpp-TreeninguReaAlgus-H25,1)<>\"\",INDEX(Treening[],TreeninguKestuseLõpp-TreeninguReaAlgus-H25,1)),\"\")","v":"2017-05-27"},"L",{"$f":"IFERROR((IF(INDEX(Treening[],TreeninguKestuseLõpp-TreeninguReaAlgus-H25,1)<>\"\",INDEX(Treening[],TreeninguKestuseLõpp-TreeninguReaAlgus-H25,2),0)),0)","v":40},{"$f":"IFERROR((IF(INDEX(Treening[],TreeninguKestuseLõpp-TreeninguReaAlgus-H25,2)<>\"\",INDEX(Treening[],TreeninguKestuseLõpp-TreeninguReaAlgus-H25,3),0)),0)","v":290},1]
[{"$nulls":3},{"$f":"IFERROR(IF(INDEX(Treening[],TreeninguKestuseLõpp-TreeninguReaAlgus-H26,1)<>\"\",INDEX(Treening[],TreeninguKestuseLõpp-TreeninguReaAlgus-H26,1)),\"\")","v":"2017-05-26"},"R",{"$f":"IFERROR((IF(INDEX(Treening[],TreeninguKestuseLõpp-TreeninguReaAlgus-H26,1)<>\"\",INDEX(Treening[],TreeninguKestuseLõpp-TreeninguReaAlgus-H26,2),0)),0)","v":35},{"$f":"IFERROR((IF(INDEX(Treening[],TreeninguKestuseLõpp-TreeninguReaAlgus-H26,2)<>\"\",INDEX(Treening[],TreeninguKestuseLõpp-TreeninguReaAlgus-H26,3),0)),0)","v":320},2]
[{"$nulls":3},{"$f":"IFERROR(IF(INDEX(Treening[],TreeninguKestuseLõpp-TreeninguReaAlgus-H27,1)<>\"\",INDEX(Treening[],TreeninguKestuseLõpp-TreeninguReaAlgus-H27,1)),\"\")","v":"2017-05-25"},"N",{"$f":"IFERROR((IF(INDEX(Treening[],TreeninguKestuseLõpp-TreeninguReaAlgus-H27,1)<>\"\",INDEX(Treening[],TreeninguKestuseLõpp-TreeninguReaAlgus-H27,2),0)),0)","v":45},{"$f":"IFERROR((IF(INDEX(Treening[],TreeninguKestuseLõpp-TreeninguReaAlgus-H27,2)<>\"\",INDEX(Treening[],TreeninguKestuseLõpp-TreeninguReaAlgus-H27,3),0)),0)","v":350},3]
[{"$nulls":3},{"$f":"IFERROR(IF(INDEX(Treening[],TreeninguKestuseLõpp-TreeninguReaAlgus-H28,1)<>\"\",INDEX(Treening[],TreeninguKestuseLõpp-TreeninguReaAlgus-H28,1)),\"\")","v":"2017-05-24"},"K",{"$f":"IFERROR((IF(INDEX(Treening[],TreeninguKestuseLõpp-TreeninguReaAlgus-H28,1)<>\"\",INDEX(Treening[],TreeninguKestuseLõpp-TreeninguReaAlgus-H28,2),0)),0)","v":20},{"$f":"IFERROR((IF(INDEX(Treening[],TreeninguKestuseLõpp-TreeninguReaAlgus-H28,2)<>\"\",INDEX(Treening[],TreeninguKestuseLõpp-TreeninguReaAlgus-H28,3),0)),0)","v":295},4]
[{"$nulls":3},{"$f":"IFERROR(IF(INDEX(Treening[],TreeninguKestuseLõpp-TreeninguReaAlgus-H29,1)<>\"\",INDEX(Treening[],TreeninguKestuseLõpp-TreeninguReaAlgus-H29,1)),\"\")","v":"2017-05-23"},"T",{"$f":"IFERROR((IF(INDEX(Treening[],TreeninguKestuseLõpp-TreeninguReaAlgus-H29,1)<>\"\",INDEX(Treening[],TreeninguKestuseLõpp-TreeninguReaAlgus-H29,2),0)),0)","v":40},{"$f":"IFERROR((IF(INDEX(Treening[],TreeninguKestuseLõpp-TreeninguReaAlgus-H29,2)<>\"\",INDEX(Treening[],TreeninguKestuseLõpp-TreeninguReaAlgus-H29,3),0)),0)","v":270},5]
[{"$nulls":3},{"$f":"IFERROR(IF(INDEX(Treening[],TreeninguKestuseLõpp-TreeninguReaAlgus-H30,1)<>\"\",INDEX(Treening[],TreeninguKestuseLõpp-TreeninguReaAlgus-H30,1)),\"\")","v":"2017-05-22"},"E",{"$f":"IFERROR((IF(INDEX(Treening[],TreeninguKestuseLõpp-TreeninguReaAlgus-H30,1)<>\"\",INDEX(Treening[],TreeninguKestuseLõpp-TreeninguReaAlgus-H30,2),0)),0)","v":45},{"$f":"IFERROR((IF(INDEX(Treening[],TreeninguKestuseLõpp-TreeninguReaAlgus-H30,2)<>\"\",INDEX(Treening[],TreeninguKestuseLõpp-TreeninguReaAlgus-H30,3),0)),0)","v":325},6]
[{"$nulls":3},{"$f":"IFERROR(IF(INDEX(Treening[],TreeninguKestuseLõpp-TreeninguReaAlgus-H31,1)<>\"\",INDEX(Treening[],TreeninguKestuseLõpp-TreeninguReaAlgus-H31,1)),\"\")","v":"2017-05-21"},"P",{"$f":"IFERROR((IF(INDEX(Treening[],TreeninguKestuseLõpp-TreeninguReaAlgus-H31,1)<>\"\",INDEX(Treening[],TreeninguKestuseLõpp-TreeninguReaAlgus-H31,2),0)),0)","v":40},{"$f":"IFERROR((IF(INDEX(Treening[],TreeninguKestuseLõpp-TreeninguReaAlgus-H31,2)<>\"\",INDEX(Treening[],TreeninguKestuseLõpp-TreeninguReaAlgus-H31,3),0)),0)","v":175},7]
[{"$nulls":3},{"$f":"IFERROR(IF(INDEX(Treening[],TreeninguKestuseLõpp-TreeninguReaAlgus-H32,1)<>\"\",INDEX(Treening[],TreeninguKestuseLõpp-TreeninguReaAlgus-H32,1)),\"\")","v":"2017-05-20"},"L",{"$f":"IFERROR((IF(INDEX(Treening[],TreeninguKestuseLõpp-TreeninguReaAlgus-H32,1)<>\"\",INDEX(Treening[],TreeninguKestuseLõpp-TreeninguReaAlgus-H32,2),0)),0)","v":30},{"$f":"IFERROR((IF(INDEX(Treening[],TreeninguKestuseLõpp-TreeninguReaAlgus-H32,2)<>\"\",INDEX(Treening[],TreeninguKestuseLõpp-TreeninguReaAlgus-H32,3),0)),0)","v":335},8]
[{"$nulls":3},{"$f":"IFERROR(IF(INDEX(Treening[],TreeninguKestuseLõpp-TreeninguReaAlgus-H33,1)<>\"\",INDEX(Treening[],TreeninguKestuseLõpp-TreeninguReaAlgus-H33,1)),\"\")","v":"2017-05-19"},"R",{"$f":"IFERROR((IF(INDEX(Treening[],TreeninguKestuseLõpp-TreeninguReaAlgus-H33,1)<>\"\",INDEX(Treening[],TreeninguKestuseLõpp-TreeninguReaAlgus-H33,2),0)),0)","v":40},{"$f":"IFERROR((IF(INDEX(Treening[],TreeninguKestuseLõpp-TreeninguReaAlgus-H33,2)<>\"\",INDEX(Treening[],TreeninguKestuseLõpp-TreeninguReaAlgus-H33,3),0)),0)","v":205},9]
[{"$nulls":3},{"$f":"IFERROR(IF(INDEX(Treening[],TreeninguKestuseLõpp-TreeninguReaAlgus-H34,1)<>\"\",INDEX(Treening[],TreeninguKestuseLõpp-TreeninguReaAlgus-H34,1)),\"\")","v":"2017-05-18"},"N",{"$f":"IFERROR((IF(INDEX(Treening[],TreeninguKestuseLõpp-TreeninguReaAlgus-H34,1)<>\"\",INDEX(Treening[],TreeninguKestuseLõpp-TreeninguReaAlgus-H34,2),0)),0)","v":20},{"$f":"IFERROR((IF(INDEX(Treening[],TreeninguKestuseLõpp-TreeninguReaAlgus-H34,2)<>\"\",INDEX(Treening[],TreeninguKestuseLõpp-TreeninguReaAlgus-H34,3),0)),0)","v":285},10]
[{"$nulls":3},{"$f":"IFERROR(IF(INDEX(Treening[],TreeninguKestuseLõpp-TreeninguReaAlgus-H35,1)<>\"\",INDEX(Treening[],TreeninguKestuseLõpp-TreeninguReaAlgus-H35,1)),\"\")","v":"2017-05-17"},"K",{"$f":"IFERROR((IF(INDEX(Treening[],TreeninguKestuseLõpp-TreeninguReaAlgus-H35,1)<>\"\",INDEX(Treening[],TreeninguKestuseLõpp-TreeninguReaAlgus-H35,2),0)),0)","v":25},{"$f":"IFERROR((IF(INDEX(Treening[],TreeninguKestuseLõpp-TreeninguReaAlgus-H35,2)<>\"\",INDEX(Treening[],TreeninguKestuseLõpp-TreeninguReaAlgus-H35,3),0)),0)","v":125},11]
[{"$nulls":3},{"$f":"IFERROR(IF(INDEX(Treening[],TreeninguKestuseLõpp-TreeninguReaAlgus-H36,1)<>\"\",INDEX(Treening[],TreeninguKestuseLõpp-TreeninguReaAlgus-H36,1)),\"\")","v":"2017-05-16"},"T",{"$f":"IFERROR((IF(INDEX(Treening[],TreeninguKestuseLõpp-TreeninguReaAlgus-H36,1)<>\"\",INDEX(Treening[],TreeninguKestuseLõpp-TreeninguReaAlgus-H36,2),0)),0)","v":30},{"$f":"IFERROR((IF(INDEX(Treening[],TreeninguKestuseLõpp-TreeninguReaAlgus-H36,2)<>\"\",INDEX(Treening[],TreeninguKestuseLõpp-TreeninguReaAlgus-H36,3),0)),0)","v":150},12]